fUST/lending_fUST_20250531
["ID","MTS","AMOUNT","RATE_DAILY","PERIOD"]
[363362509,1748697035580,-430.0,0.00016438,2]
[363362510,1748697035590,-430.0,0.00016438,2]
[363362511,1748697035600,-430.0,0.00016438,2]
[363362512,1748697035610,-430.0,0.00016438,2]
[363362513,1748697035620,-430.0,0.00016438,2]
[363362514,1748697035631,-430.0,0.00016438,2]
[363362515,1748697035641,-430.0,0.00016438,2]
[363362516,1748697035651,-430.0,0.00016438,2]
[363362517,1748697035661,-430.0,0.00016438,2]
[363362518,1748697035671,-430.0,0.00016438,2]
[363362519,1748697035681,-430.0,0.00016438,2]
[363362520,1748697035691,-430.0,0.00016438,2]
[363362521,1748697035700,-430.0,0.00016438,2]
[363362522,1748697035710,-430.0,0.00016438,2]
[363362523,1748697035720,-430.0,0.00016438,2]
[363362524,1748697035729,-430.0,0.00016438,2]
[363362525,1748697035740,-430.0,0.00016438,2]
[363362526,1748697035751,-430.0,0.00016438,2]
[363362527,1748697035761,-430.0,0.00016438,2]
[363362528,1748697035771,-430.0,0.00016438,2]
[363362529,1748697035782,-430.0,0.00016438,2]
[363362530,1748697035792,-430.0,0.00016438,2]
[363362531,1748697035802,-430.0,0.00016438,2]
[363362532,1748697035812,-430.0,0.00016438,2]
[363362533,1748697035822,-430.0,0.00016438,2]
[363362534,1748697035832,-197.49781145,0.00016438,2]
[363362535,1748697035842,-430.0,0.00016438,2]
[363362536,1748697035852,-569.0191183,0.00016438,2]
[363362537,1748697035862,-430.0,0.00016438,2]
[363362538,1748697035871,-273.27911492,0.00016438,2]
[363362539,1748697035881,-430.0,0.00016438,2]
[363362540,1748697035891,-430.0,0.00016438,2]
[363362541,1748697035900,-430.0,0.00016438,2]
[363362542,1748697035910,-430.0,0.00016438,2]
[363362543,1748697035919,-270.0,0.00016438,2]
[363362544,1748697035933,-430.0,0.00016438,2]
[363362545,1748697035942,-430.0,0.00016438,2]
[363362546,1748697035952,-430.0,0.00016438,2]
[363362547,1748697035962,-430.0,0.00016438,2]
[363362548,1748697035971,-430.0,0.00016438,2]
[363362549,1748697035981,-430.0,0.00016438,2]
[363362550,1748697035991,-430.0,0.00016438,2]
[363362551,1748697036002,-430.0,0.00016438,2]
[363362552,1748697036014,-430.0,0.00016438,2]
[363362553,1748697036024,-430.0,0.00016438,2]
[363362554,1748697036034,-334.40590533,0.00016438,2]
[363362555,1748697036046,-430.0,0.00016438,2]
[363362556,1748697036056,-430.0,0.00016438,2]
[363362557,1748697036066,-430.0,0.00016438,2]
[363362558,1748697036076,-430.0,0.00016438,2]
[363362559,1748697036086,-430.0,0.00016438,2]
[363362560,1748697036095,-430.0,0.00016438,2]
[363362561,1748697036105,-430.0,0.00016438,2]
[363362562,1748697036115,-430.0,0.00016438,2]
[363362563,1748697036125,-430.0,0.00016438,2]
[363362564,1748697036134,-430.0,0.00016438,2]
[363362565,1748697036144,-430.0,0.00016438,2]
[363362566,1748697036154,-430.0,0.00016438,2]
[363362567,1748697036163,-430.0,0.00016438,2]
[363362568,1748697036173,-430.0,0.00016438,2]
[363362569,1748697036184,-525.78520218,0.00016438,2]
[363362570,1748697036195,-430.0,0.00016438,2]
[363362571,1748697036322,-430.0,0.00016438,2]
[363362572,1748697036337,-430.0,0.00016438,2]
[363362573,1748697036348,-430.0,0.00016438,2]
[363362574,1748697036358,-430.0,0.00016438,2]
[363362575,1748697036368,-430.0,0.00016438,2]
[363362576,1748697036378,-430.0,0.00016438,2]
[363362577,1748697036389,-473.55596971,0.00016438,2]
[363362578,1748697036399,-430.0,0.00016438,2]
[363362579,1748697036410,-412.65062192,0.00016438,2]
[363362580,1748697036421,-214.1530419,0.00016697,2]
[363362581,1748697036432,-430.0,0.00016711,2]
[363362582,1748697036442,-430.0,0.00016711,2]
[363362583,1748697036452,-430.0,0.00016711,2]
[363362584,1748697036462,-430.0,0.00016711,2]
[363362585,1748697036472,-430.0,0.00016712,2]
[363362586,1748697036482,-430.0,0.00016712,2]
[363362587,1748697036492,-430.0,0.00016712,2]
[363362588,1748697036502,-472.93925003,0.00016712,2]
[363362589,1748697036512,-430.0,0.00016712,2]
[363362590,1748697036521,-400.0,0.00016712,2]
[363362591,1748697036531,-430.0,0.00016712,2]
[363362592,1748697036542,-396.11617264,0.00016712,2]
[363362593,1748697036552,-430.0,0.00016712,2]
[363362594,1748697036561,-179.82190739,0.00016712,2]
[363362595,1748697036572,-350.0,0.00016712,2]
[363362596,1748697036582,-430.0,0.00016712,2]
[363362597,1748697036591,-430.0,0.00016712,2]
[363362598,1748697036601,-430.0,0.00016712,2]
[363362599,1748697036611,-430.87968809,0.00016712,2]
[363362600,1748697036621,-261.70902113,0.00016712,2]
[363362601,1748697036630,-430.0,0.00016712,2]
[363362602,1748697036640,-430.0,0.00016712,2]
[363362603,1748697036650,-430.0,0.00016712,2]
[363362604,1748697036660,-406.87933725,0.00016712,2]
[363362605,1748697036670,-462.15157776,0.00016712,2]
[363362606,1748697036680,-430.0,0.00016712,2]
[363362607,1748697036690,-430.0,0.00016712,2]
[363362608,1748697036700,-430.0,0.00016712,2]
[363362609,1748697036709,-323.84184174,0.00016712,2]
[363362610,1748697036719,-291.74975013,0.00016712,2]
[363362619,1748697037826,-520.8,0.00016438,2]
[363362620,1748697037837,-138.25024987,0.00016712,2]
[363362621,1748697037847,-269.63217454,0.00016712,2]
[363362622,1748697037857,-437.23081561,0.00016712,2]
[363362623,1748697037868,-33.06219859,0.00016712,2]
[363362624,1748697037880,-170.96926707,0.00016712,2]
[363362625,1748697037889,-430.0,0.00016712,2]
[363362626,1748697037899,-430.0,0.00016712,2]
[363362627,1748697037909,-430.0,0.00016712,2]
[363362628,1748697037919,-430.0,0.00016712,2]
[363362629,1748697037933,-430.0,0.00016712,2]
[363362630,1748697037942,-430.0,0.00016712,2]
[363362631,1748697037952,-430.0,0.00016712,2]
[363362632,1748697037962,-430.0,0.00016712,2]
[363362633,1748697037974,-430.0,0.00016712,2]
[363362634,1748697037983,-430.0,0.00016712,2]
[363362635,1748697037992,-430.0,0.00016712,2]
[363362637,1748697038003,-430.0,0.00016712,2]
[363362638,1748697038013,-430.0,0.00016712,2]
[363362639,1748697038023,-465.34658479,0.00016712,2]
[363362640,1748697038033,-430.0,0.00016712,2]
[363362641,1748697038045,-527.6491173,0.00016712,2]
[363362642,1748697038054,-430.0,0.00016712,2]
[363362643,1748697038064,-430.0,0.00016712,2]
[363362644,1748697038074,-430.0,0.00016986,2]
[363362645,1748697038083,-430.0,0.00016986,2]
[363362646,1748697038093,-230.0,0.00016986,2]
[363362647,1748697038104,-411.42057765,0.00016986,2]
[363362648,1748697038114,-356.9930781,0.00016986,2]
[363362649,1748697038128,-430.0,0.00016986,2]
[363362650,1748697038138,-524.78,0.00016986,2]
[363362651,1748697038148,-445.38,0.0001726,2]
[363362652,1748697038158,-314.98,0.0001726,2]
[363362653,1748697038168,-376.48820343,0.000179,2]
[363362654,1748697038177,-244.33097111,0.00017956,2]
[363362655,1748697038187,-2000.0,0.00018,2]
[363362656,1748697038196,-376.48820325,0.00018141,2]
[363362657,1748697038205,-160.0,0.0001823,2]
[363362658,1748697038215,-160.0,0.0001823,2]
[363362659,1748697038225,-212.77096907,0.0001823,2]
[363362660,1748697038234,-842.5625,0.0001823,2]
[363362661,1748697038244,-229.3428821,0.0001823,2]
[363362662,1748697038254,-423.4608169,0.0001823,2]
[363362663,1748697038263,-160.0,0.0001823,2]
[363362664,1748697038273,-160.0,0.0001823,2]
[363362665,1748697038282,-7554.5260877,0.00018263,2]
[363362666,1748697038293,-376.48820325,0.00018383,2]
[363362667,1748697038303,-376.48820325,0.00018624,2]
[363362668,1748697038312,-376.48820325,0.00018866,2]
[363362669,1748697038322,-3724.32592862,0.00019,2]
[363362670,1748697038332,-376.48820325,0.00019107,2]
[363362671,1748697038341,-167.877289,0.00019178,2]
[363362672,1748697038351,-178.230601,0.00019178,2]
[363362673,1748697038361,-376.48820325,0.00019348,2]
[363362674,1748697038370,-376.48820325,0.0001959,2]
[363362675,1748697038380,-376.48820325,0.00019831,2]
[363362676,1748697038389,-372.369,0.00019844,2]
[363362677,1748697038399,-500.0,0.00019964,2]
[363362678,1748697038408,-237.54024486,0.0002,2]
[363362679,1748697038420,-1762.45975514,0.0002,2]
[363362680,1748697038430,-376.48820325,0.00020072,2]
[363362681,1748697038440,-376.48820325,0.00020314,3]
[363362682,1748697038449,-376.48820325,0.00020555,3]
[363362683,1748697038458,-376.48820325,0.00020797,4]
[363362684,1748697038468,-2000.0,0.00021,2]
[363362685,1748697038478,-376.48820325,0.00021038,4]
[363362686,1748697038487,-500.0,0.0002106,2]
[363362687,1748697038496,-376.48820325,0.00021279,5]
[363362688,1748697038506,-24528.0175613,0.00021312,2]
[363362689,1748697038516,-364.3142842,0.00021342,2]
[363362690,1748697038526,-381.06,0.000214,2]
[363362691,1748697038537,-3958.21,0.000214,2]
[363362692,1748697038547,-1419.17,0.000214,2]
[363362693,1748697038557,-5090.66,0.00021434,2]
[363362694,1748697038567,-376.48820325,0.00021521,5]
[363362695,1748697038576,-250.0,0.00021719,2]
[363362696,1748697038586,-376.48820325,0.00021762,5]
[363362697,1748697038595,-500.0,0.00021917,2]
[363362698,1748697038605,-1467.65,0.00022,2]
[363362699,1748697038615,-171.0,0.00022,2]
[363362700,1748697038625,-380.0,0.00022,2]
[363362701,1748697038635,-376.48820325,0.00022003,6]
[363362702,1748697038645,-708.0,0.00022014,2]
[363362703,1748697038655,-2227.0,0.00022014,2]
[363362704,1748697038664,-405.0,0.00022014,2]
[363362705,1748697038674,-380.0,0.00022192,7]
[363362706,1748697038683,-376.48820325,0.00022245,6]
[363362707,1748697038693,-207.4,0.00022442,2]
[363362708,1748697038702,-500.0,0.00022465,2]
[363362709,1748697038711,-150.0,0.00022474,2]
[363362710,1748697038721,-150.0,0.00022474,2]
[363362711,1748697038730,-150.0,0.00022474,2]
[363362712,1748697038740,-150.0,0.00022474,2]
[363362713,1748697038751,-962.0,0.00022474,2]
[363362714,1748697038761,-376.48820325,0.00022486,7]
[363362715,1748697038772,-618.45909054,0.00022558,2]
[363362716,1748697038781,-4130.97,0.00022612,2]
[363362717,1748697038791,-1419.17,0.000227,7]
[363362718,1748697038801,-376.48820325,0.00022728,7]
[363362719,1748697038811,-828.35,0.00022839,6]
[363362720,1748697038820,-2000.0,0.000229,2]
[363362721,1748697038830,-2000.0,0.000229,2]
[363362722,1748697038839,-381.06,0.000229,7]
[363362723,1748697038849,-376.48820325,0.00022969,8]
[363362724,1748697038859,-2000.0,0.00023,5]
[363362725,1748697038869,-3958.21,0.00023,2]
[363362726,1748697038878,-328.08886732,0.00023,2]
[363362727,1748697038888,-500.0,0.00023013,2]
[363362728,1748697038898,-171.0,0.00023014,7]
[363362729,1748697038908,-380.0,0.00023014,7]
[363362730,1748697038918,-376.48820325,0.0002321,8]
[363362731,1748697038931,-500.0,0.00023252,2]
[363362732,1748697038941,-1661.835276,0.00023324,3]
[363362733,1748697038950,-8015.89793442,0.00023352,2]
[363362734,1748697038960,-10181.32,0.00023383,2]
[363362735,1748697038970,-376.48820325,0.00023452,9]
[363362736,1748697038980,-5025.13970478,0.00023498,2]
[363362737,1748697038989,-2000.0,0.000235,2]
[363362738,1748697038999,-2000.0,0.000235,2]
[363362739,1748697039009,-500.0,0.00023561,2]
[363362740,1748697039019,-210.0,0.0002369,8]
[363362741,1748697039029,-376.48820325,0.00023693,9]
[363362742,1748697039038,-6198.75422599,0.000237,2]
[363362743,1748697039048,-500.0,0.0002373,9]
[363362744,1748697039058,-8015.8979344,0.00023733,2]
[363362745,1748697039067,-6198.75422593,0.00023746,2]
[363362746,1748697039077,-6198.75422593,0.00023792,2]
[363362747,1748697039086,-160.0,0.000238,3]
[363362748,1748697039096,-842.5625,0.000238,3]
[363362749,1748697039106,-229.3428821,0.000238,3]
[363362750,1748697039116,-314.84782018,0.000238,3]
[363362751,1748697039125,-160.0,0.000238,3]
[363362752,1748697039135,-28157.54452141,0.000238,3]
[363362753,1748697039145,-3419.34780806,0.000238,2]
[363362754,1748697039161,-3999.98158389,0.000238,2]
[363362755,1748697039173,-1475.5999992,0.000238,2]
[363362756,1748697039184,-21678.9,0.000238,2]
[363362760,1748697040037,-373.89531288,0.00023373,10]
[363362761,1748697040050,-940.06468712,0.00023373,10]
[363362762,1748697040060,-4779.93533288,0.000238,2]
[363362763,1748697040093,-400.0,0.000238,2]
[363362764,1748697040104,-2360.33684298,0.000238,2]
[363362765,1748697040116,-722.79638913,0.000238,2]
[363362809,1748697043391,-2975.86823948,0.000238,2]
[363362813,1748697043449,-540.0,0.000238,2]
[363362826,1748697046129,-1263.19276571,0.000238,2]
[363362827,1748697046323,-0.32604738,0.000238,2]
[363362830,1748697382375,177.3492921,0.00013699,2]
[363362886,1748697614624,-324.94827052,0.00016338,2]
[363362887,1748697645389,414.415,0.000246,120]
[363362894,1748698025138,-184.85115825,0.00016338,2]
[363362895,1748698025163,-340.37002831,0.00016427,2]
[363362896,1748698025188,-177.0,0.00016434,2]
[363362897,1748698025212,-152.0,0.00016435,2]
[363362898,1748698025238,-300.0,0.00016435,2]
[363362899,1748698025262,-300.0,0.00016435,2]
[363362900,1748698025285,-1200.0,0.00016435,2]
[363362901,1748698025309,-300.0,0.00016435,2]
[363362902,1748698025333,-3301.95163687,0.00016436,2]
[363362903,1748698031094,-922.69903004,0.00016436,2]
[363362904,1748698044091,-320.3775265,0.00016338,2]
[363362905,1748698054102,-140.90129598,0.00016338,2]
[363362906,1748698054128,-392.17488998,0.00016436,2]
[363362944,1748698232090,-300.0,0.00016435,2]
[363362945,1748698232100,-300.0,0.00016435,2]
[363362947,1748698232111,-277.0,0.00016435,2]
[363362949,1748698232121,-232.14178699,0.00016436,2]
[363362957,1748698232264,-151.03265612,0.00016436,2]
[363362958,1748698232274,-447.77624371,0.00016436,2]
[363362960,1748698232287,-500.0,0.00016436,2]
[363362962,1748698232298,-500.0,0.00016436,2]
[363362963,1748698232307,-500.0,0.00016436,2]
[363362964,1748698232317,-500.0,0.00016436,2]
[363362965,1748698232328,-583.66753365,0.00016436,2]
[363362966,1748698232337,-500.0,0.00016436,2]
[363362967,1748698232347,-500.0,0.00016436,2]
[363362969,1748698232358,-500.0,0.00016436,2]
[363362970,1748698232368,-500.0,0.00016436,2]
[363362971,1748698232377,-519.00753865,0.00016437,2]
[363362972,1748698232387,-500.0,0.00016437,2]
[363362973,1748698232396,-528.82565991,0.00016437,2]
[363362974,1748698232406,-500.0,0.00016437,2]
[363362975,1748698232415,-500.0,0.00016437,2]
[363362976,1748698232424,-500.0,0.00016437,2]
[363362977,1748698232434,-500.0,0.00016437,2]
[363362978,1748698232443,-500.0,0.00016437,2]
[363362979,1748698232454,-500.0,0.00016437,2]
[363362980,1748698232464,-500.0,0.00016437,2]
[363362981,1748698232476,-500.0,0.00016437,2]
[363362982,1748698232485,-500.0,0.00016437,2]
[363362983,1748698232495,-500.0,0.00016437,2]
[363362984,1748698232505,-500.0,0.00016437,2]
[363362985,1748698232515,-500.0,0.00016437,2]
[363362986,1748698232524,-500.0,0.00016437,2]
[363362987,1748698232535,-500.0,0.00016437,2]
[363362988,1748698232544,-500.0,0.00016437,2]
[363362989,1748698232554,-500.0,0.00016437,2]
[363362990,1748698232563,-517.25987312,0.00016437,2]
[363362991,1748698232573,-500.0,0.00016437,2]
[363362992,1748698232583,-400.0,0.00016437,2]
[363362993,1748698232594,-431.46534357,0.00016438,2]
[363362994,1748698232607,-450.0,0.00016438,2]
[363362995,1748698232618,-430.0,0.00016438,2]
[363362996,1748698232628,-430.0,0.00016438,2]
[363362997,1748698232638,-430.0,0.00016438,2]
[363362998,1748698232647,-430.0,0.00016438,2]
[363362999,1748698232656,-390.39084991,0.00016438,2]
[363363000,1748698232666,-430.0,0.00016438,2]
[363363001,1748698232675,-430.0,0.00016438,2]
[363363002,1748698232684,-400.0,0.00016438,2]
[363363003,1748698232699,-430.0,0.00016438,2]
[363363004,1748698232709,-430.0,0.00016438,2]
[363363005,1748698232718,-427.06361174,0.00016438,2]
[363363006,1748698232727,-430.0,0.00016438,2]
[363363007,1748698232736,-497.29045021,0.00016438,2]
[363363008,1748698232746,-430.0,0.00016438,2]
[363363009,1748698232755,-430.0,0.00016438,2]
[363363010,1748698232766,-430.0,0.00016438,2]
[363363011,1748698232775,-430.0,0.00016438,2]
[363363012,1748698232785,-190.8310766,0.00016438,2]
[363363013,1748698232795,-517.34857597,0.00016438,2]
[363363014,1748698232804,-1011.06913165,0.00016438,2]
[363363015,1748698232815,-430.0,0.00016438,2]
[363363016,1748698232824,-430.0,0.00016438,2]
[363363017,1748698232834,-430.0,0.00016438,2]
[363363018,1748698232843,-430.0,0.00016438,2]
[363363019,1748698232853,-404.49785513,0.00016438,2]
[363363020,1748698232863,-438.62704701,0.00016438,2]
[363363021,1748698232872,-507.41506635,0.00016438,2]
[363363022,1748698232882,-430.0,0.00016438,2]
[363363023,1748698232892,-430.0,0.00016438,2]
[363363024,1748698232901,-430.0,0.00016438,2]
[363363025,1748698232910,-430.0,0.00016438,2]
[363363026,1748698232920,-430.0,0.00016438,2]
[363363027,1748698232929,-430.0,0.00016438,2]
[363363028,1748698232939,-431.09057324,0.00016438,2]
[363363029,1748698232948,-430.0,0.00016438,2]
[363363030,1748698232958,-430.0,0.00016438,2]
[363363031,1748698232968,-430.0,0.00016438,2]
[363363032,1748698232977,-1000.0,0.00016438,2]
[363363033,1748698232987,-430.0,0.00016438,2]
[363363034,1748698232997,-433.37834558,0.00016438,2]
[363363035,1748698233010,-430.0,0.00016438,2]
[363363036,1748698233022,-430.0,0.00016438,2]
[363363037,1748698233031,-430.0,0.00016438,2]
[363363038,1748698233041,-430.0,0.00016438,2]
[363363039,1748698233051,-430.0,0.00016438,2]
[363363040,1748698233061,-430.0,0.00016438,2]
[363363041,1748698233072,-430.48781842,0.00016438,2]
[363363042,1748698233082,-430.0,0.00016438,2]
[363363043,1748698233092,-430.0,0.00016438,2]
[363363044,1748698233102,-430.0,0.00016438,2]
[363363045,1748698233112,-430.0,0.00016438,2]
[363363046,1748698233122,-430.0,0.00016438,2]
[363363047,1748698233133,-401.25850937,0.00016438,2]
[363363048,1748698233144,-430.0,0.00016438,2]
[363363049,1748698233155,-402.09136,0.00016438,2]
[363363050,1748698233165,-430.0,0.00016438,2]
[363363051,1748698233176,-430.0,0.00016438,2]
[363363052,1748698233186,-430.0,0.00016438,2]
[363363053,1748698233196,-430.0,0.00016438,2]
[363363054,1748698233207,-430.0,0.00016438,2]
[363363055,1748698233217,-419.53107302,0.00016438,2]
[363363056,1748698233227,-430.0,0.00016438,2]
[363363057,1748698233238,-402.26377488,0.00016438,2]
[363363058,1748698233248,-430.0,0.00016438,2]
[363363059,1748698233259,-430.0,0.00016438,2]
[363363060,1748698233268,-430.0,0.00016438,2]
[363363061,1748698233277,-504.62779254,0.00016438,2]
[363363062,1748698233291,-443.62437515,0.00016438,2]
[363363063,1748698233301,-430.0,0.00016438,2]
[363363064,1748698233311,-430.0,0.00016438,2]
[363363065,1748698233326,-430.0,0.00016438,2]
[363363066,1748698233335,-430.0,0.00016438,2]
[363363067,1748698233346,-430.0,0.00016438,2]
[363363068,1748698233356,-430.0,0.00016438,2]
[363363069,1748698233372,-430.0,0.00016438,2]
[363363070,1748698233381,-430.0,0.00016438,2]
[363363071,1748698233391,-430.0,0.00016438,2]
[363363072,1748698233401,-430.0,0.00016438,2]
[363363073,1748698233411,-430.0,0.00016438,2]
[363363074,1748698233421,-430.0,0.00016438,2]
[363363075,1748698233431,-430.0,0.00016438,2]
[363363076,1748698233440,-430.0,0.00016438,2]
[363363077,1748698233450,-430.0,0.00016438,2]
[363363078,1748698233460,-430.0,0.00016438,2]
[363363079,1748698233469,-430.0,0.00016438,2]
[363363080,1748698233479,-430.0,0.00016438,2]
[363363081,1748698233488,-422.69410625,0.00016438,2]
[363363082,1748698233498,-430.0,0.00016438,2]
[363363083,1748698233511,-497.99699983,0.00016438,2]
[363363084,1748698233520,-430.0,0.00016438,2]
[363363085,1748698233530,-430.0,0.00016438,2]
[363363086,1748698233540,-400.0,0.00016438,2]
[363363087,1748698233549,-430.0,0.00016438,2]
[363363088,1748698233559,-430.0,0.00016438,2]
[363363089,1748698233571,-430.0,0.00016438,2]
[363363090,1748698233582,-410.52168767,0.00016438,2]
[363363091,1748698233591,-430.0,0.00016438,2]
[363363092,1748698233601,-430.0,0.00016438,2]
[363363093,1748698233611,-430.0,0.00016438,2]
[363363094,1748698233780,-430.0,0.00016438,2]
[363363095,1748698233791,-430.0,0.00016438,2]
[363363096,1748698233806,-375.6848762,0.00016438,2]
[363363097,1748698233816,-430.0,0.00016438,2]
[363363098,1748698233826,-485.16930671,0.00016438,2]
[363363099,1748698233836,-430.0,0.00016438,2]
[363363100,1748698233846,-430.0,0.00016438,2]
[363363101,1748698233856,-290.0,0.00016438,2]
[363363102,1748698233866,-405.25971384,0.00016438,2]
[363363103,1748698233875,-403.54481353,0.00016438,2]
[363363104,1748698233884,-430.0,0.00016438,2]
[363363105,1748698233894,-461.77761851,0.00016438,2]
[363363106,1748698233903,-430.0,0.00016438,2]
[363363107,1748698233915,-430.0,0.00016438,2]
[363363108,1748698233925,-403.92090289,0.00016438,2]
[363363109,1748698233934,-430.0,0.00016438,2]
[363363110,1748698233944,-430.0,0.00016438,2]
[363363111,1748698233954,-430.0,0.00016438,2]
[363363112,1748698233964,-430.0,0.00016438,2]
[363363113,1748698233974,-430.0,0.00016438,2]
[363363114,1748698233984,-516.84872903,0.00016438,2]
[363363115,1748698233994,-430.0,0.00016438,2]
[363363116,1748698234003,-450.0,0.00016438,2]
[363363117,1748698234013,-430.0,0.00016438,2]
[363363118,1748698234022,-430.0,0.00016438,2]
[363363119,1748698234032,-430.0,0.00016438,2]
[363363120,1748698234041,-430.0,0.00016438,2]
[363363121,1748698234050,-452.77572064,0.00016438,2]
[363363122,1748698234060,-430.0,0.00016438,2]
[363363123,1748698234071,-430.0,0.00016438,2]
[363363124,1748698234081,-430.0,0.00016438,2]
[363363125,1748698234091,-340.62453092,0.00016438,2]
[363363126,1748698234102,-430.0,0.00016438,2]
[363363127,1748698234112,-248.99506919,0.00016438,2]
[363363128,1748698234122,-430.0,0.00016438,2]
[363363129,1748698234132,-430.0,0.00016438,2]
[363363130,1748698234142,-245.10365391,0.00016438,2]
[363363131,1748698234151,-430.0,0.00016438,2]
[363363132,1748698234161,-430.0,0.00016438,2]
[363363133,1748698234171,-398.63301093,0.00016438,2]
[363363134,1748698234181,-411.76600262,0.00016438,2]
[363363135,1748698234190,-440.07549382,0.00016438,2]
[363363136,1748698234200,-430.0,0.00016438,2]
[363363137,1748698234210,-430.0,0.00016438,2]
[363363138,1748698234220,-403.09172572,0.00016438,2]
[363363139,1748698234230,-430.0,0.00016438,2]
[363363140,1748698234240,-430.0,0.00016438,2]
[363363141,1748698234250,-430.0,0.00016438,2]
[363363142,1748698234262,-430.0,0.00016438,2]
[363363143,1748698234271,-430.0,0.00016438,2]
[363363144,1748698234279,-430.0,0.00016438,2]
[363363145,1748698234293,-430.0,0.00016438,2]
[363363146,1748698234302,-430.0,0.00016438,2]
[363363147,1748698234311,-507.07995648,0.00016438,2]
[363363148,1748698234321,-430.0,0.00016438,2]
[363363149,1748698234331,-430.0,0.00016438,2]
[363363150,1748698234341,-430.0,0.00016438,2]
[363363151,1748698234350,-509.93155127,0.00016438,2]
[363363152,1748698234360,-438.4870492,0.00016438,2]
[363363153,1748698234375,-430.0,0.00016438,2]
[363363154,1748698234384,-430.0,0.00016438,2]
[363363155,1748698234394,-430.0,0.00016438,2]
[363363156,1748698234403,-430.0,0.00016438,2]
[363363157,1748698234413,-427.16075474,0.00016438,2]
[363363158,1748698234423,-430.0,0.00016438,2]
[363363159,1748698234432,-430.0,0.00016438,2]
[363363160,1748698234441,-430.0,0.00016438,2]
[363363161,1748698234451,-430.0,0.00016438,2]
[363363162,1748698234461,-341.55608489,0.00016438,2]
[363363163,1748698234471,-430.0,0.00016438,2]
[363363164,1748698234480,-188.0,0.00016438,2]
[363363165,1748698234490,-430.0,0.00016438,2]
[363363166,1748698234499,-430.0,0.00016438,2]
[363363167,1748698234509,-432.2265561,0.00016438,2]
[363363168,1748698234518,-500.0,0.00016438,2]
[363363169,1748698234528,-500.0,0.00016438,2]
[363363170,1748698234537,-500.0,0.00016438,2]
[363363171,1748698234547,-430.0,0.00016438,2]
[363363172,1748698234556,-430.0,0.00016438,2]
[363363173,1748698234568,-430.0,0.00016438,2]
[363363174,1748698234578,-430.0,0.00016438,2]
[363363175,1748698234587,-430.0,0.00016438,2]
[363363176,1748698234596,-430.0,0.00016438,2]
[363363177,1748698234605,-430.0,0.00016438,2]
[363363178,1748698234615,-431.31451546,0.00016438,2]
[363363179,1748698234624,-454.34861304,0.00016438,2]
[363363180,1748698234634,-430.0,0.00016438,2]
[363363181,1748698234643,-430.0,0.00016438,2]
[363363182,1748698234653,-430.0,0.00016438,2]
[363363183,1748698234662,-430.0,0.00016438,2]
[363363184,1748698234671,-430.0,0.00016438,2]
[363363185,1748698234681,-430.0,0.00016438,2]
[363363186,1748698234691,-430.0,0.00016438,2]
[363363187,1748698234701,-430.0,0.00016438,2]
[363363188,1748698234710,-430.0,0.00016438,2]
[363363189,1748698234720,-430.0,0.00016438,2]
[363363190,1748698234729,-430.0,0.00016438,2]